bitfinex/quotes_ETHUSD_20260120
["timestamp","ask_amount","ask_price","bid_price","bid_amount"]
[1768934393675,14.3663273,2994.5,2994.0,2e-08]
[1768934395205,0.551,2994.7,2994.0,8.98877239]
[1768934395511,0.001,2994.7,2994.3,14.26456789]
[1768934395823,12.39353811,2994.7,2994.0,2e-08]
[1768934397805,0.001,2994.7,2994.2,8.98897907]
[1768934398894,0.001,2994.3,2994.2,8.98897907]
[1768934399208,0.001,2994.7,2994.2,10.41545653]
[1768934399378,0.001,2994.7,2994.2,8.98897907]
[1768934401217,12.39353811,2994.7,2994.2,8.98897907]
[1768934402689,12.39353811,2994.9,2994.3,14.26510357]
[1768934402914,0.001,2994.9,2994.4,8.98930805]
[1768934403114,12.39353811,2994.9,2994.4,8.98930805]
[1768934403309,12.39353811,2994.9,2994.2,8.98930805]
[1768934403500,13.68799192,2994.9,2994.0,8.98930807]
[1768934404814,13.68799192,2994.9,2994.0,2e-08]
[1768934405014,12.39253811,2994.8,2994.0,2e-08]
[1768934405837,1.29545381,2994.9,2994.0,2e-08]
[1768934405838,12.39253811,2994.4,2994.0,2e-08]
[1768934405995,5.27579552,2994.5,2993.6,0.002]
[1768934405996,12.39253811,2994.2,2993.6,0.002]
[1768934406427,0.55,2994.3,2993.2,0.002]
[1768934406428,5.27579552,2993.8,2993.2,0.002]
[1768934406628,12.94253811,2993.7,2993.1,0.002]
[1768934406797,14.76437147,2993.7,2993.1,0.002]
[1768934407727,12.39253811,2993.6,2993.1,0.002]
[1768934408096,17.66833363,2993.6,2993.1,0.002]
[1768934408298,5.71219881,2993.7,2992.5,0.002]
[1768934408299,12.39253811,2993.3,2992.5,0.002]
[1768934408613,12.39253811,2993.1,2992.5,0.002]
[1768934409012,5.82579552,2993.2,2992.5,0.002]
[1768934409013,12.39253811,2992.9,2992.5,0.002]
[1768934409197,12.39253811,2992.7,2992.2,0.002]
[1768934409402,12.39253811,2992.7,2992.0,0.002]
[1768934410328,12.39253811,2992.7,2992.4,0.002]
[1768934410532,12.39253811,2992.7,2992.0,0.002]
[1768934410732,12.39253811,2992.5,2991.8,0.002]
[1768934411035,12.39253811,2992.1,2991.6,2.05e-06]
[1768934411233,3.34202259,2992.2,2991.4,0.002]
[1768934411234,12.39253811,2991.9,2991.4,0.002]
[1768934411618,12.39253811,2991.9,2991.0,0.002]
[1768934413104,0.55,2992.0,2989.8,9.01007986]
[1768934413105,12.39253811,2991.6,2989.8,9.01007986]
[1768934413300,12.39253811,2991.4,2989.5,9.01007986]
[1768934413509,12.39253811,2990.7,2988.4,0.55]
[1768934413735,0.43423749,2991.5,2988.4,0.55]
[1768934413736,1.94586908,2990.6,2989.6,9.01031039]
[1768934413915,12.39253811,2990.8,2989.6,9.01031039]
[1768934414240,12.94253811,2990.7,2989.6,9.01031039]
[1768934414452,12.94253811,2990.7,2989.3,9.01031039]
[1768934414665,12.39253811,2990.5,2989.0,9.01031039]
[1768934414936,12.39253811,2990.5,2988.9,9.01133876]
[1768934415158,12.10348263,2990.3,2988.9,9.01133876]
[1768934415307,12.10348263,2990.1,2988.8,3.34581462]
[1768934415503,12.10348263,2990.1,2988.9,3.34569831]
[1768934415735,12.10348263,2990.1,2988.8,12.35713804]
[1768934415935,12.10348263,2990.1,2988.6,3.34601491]
[1768934416109,12.10348263,2990.1,2988.6,12.35785901]
[1768934416306,12.10348263,2989.9,2987.9,6.53108579]
[1768934416613,12.10348263,2989.7,2987.9,9.0118441]
[1768934416836,12.10348263,2989.7,2987.2,3.34755164]
[1768934416837,0.55,2989.6,2988.3,6.53108579]
[1768934417151,12.65348263,2989.6,2988.4,9.01278396]
[1768934417360,13.36883089,2989.5,2988.5,1.88902219]
[1768934417715,12.65348263,2989.4,2988.1,9.56371301]
[1768934418032,12.65348263,2989.4,2988.4,12.35997841]
[1768934418219,12.65348263,2989.4,2988.1,0.55]
[1768934418220,12.65348263,2989.4,2988.2,3.34649162]
[1768934418425,12.10348263,2989.4,2988.2,3.34649162]
[1768934418624,12.10348263,2989.7,2988.5,9.01472931]
[1768934418831,0.55,2989.7,2988.6,9.01472931]
[1768934419115,0.55,2989.7,2988.7,12.36066567]
[1768934419319,12.10348263,2989.8,2988.6,0.55]
[1768934419524,12.10348263,2989.6,2988.6,3.8960032]
[1768934420152,12.10348263,2989.6,2988.6,16.25778545]
[1768934420334,12.65348263,2990.1,2988.7,9.02561049]
[1768934420653,12.65348263,2990.1,2988.7,9.01573394]
[1768934421049,12.10348263,2990.1,2988.8,3.34582441]
[1768934421257,12.10348263,2990.1,2988.9,9.01672702]
[1768934421470,12.10348263,2991.0,2989.1,9.01672702]
[1768934421670,12.10348263,2991.0,2989.3,9.0177087]
[1768934421823,12.10348263,2990.8,2989.3,9.0177087]
[1768934422024,1.21034826,2990.7,2989.5,9.0177087]
[1768934422238,13.31383089,2990.7,2989.5,9.0177087]
[1768934422463,12.10348263,2990.7,2989.5,9.0177087]
[1768934422662,12.65348263,2990.7,2989.5,9.0177087]
[1768934423170,12.65348263,2990.7,2989.7,9.01867911]
[1768934423339,12.10348263,2990.7,2989.7,9.01867911]
[1768934423663,1.26534826,2990.6,2989.7,9.01867911]
[1768934425086,12.10348263,2991.0,2989.7,9.01867911]
[1768934425224,12.10348263,2991.3,2990.1,9.02058661]
[1768934425568,12.65348263,2991.3,2990.1,9.02058661]
[1768934425866,13.36883089,2991.2,2990.1,10.59154159]
[1768934426080,12.10348263,2991.2,2990.1,10.59154159]
[1768934426373,12.10348263,2991.3,2989.8,9.02152396]
[1768934426531,12.10348263,2991.1,2990.0,0.551]
[1768934426864,1.26534826,2991.0,2990.0,9.57345054]
[1768934427028,12.10348263,2991.6,2990.0,9.57345054]
[1768934427227,12.10348263,2991.6,2990.2,9.02245054]
[1768934427623,12.10348263,2991.6,2990.4,9.02245054]
[1768934427823,12.10348263,2991.6,2990.5,0.551]
[1768934428177,13.31383089,2991.6,2990.6,0.95734505]
[1768934429639,13.31383089,2991.6,2990.6,4.30114773]
[1768934429838,13.31383089,2991.6,2990.6,7.64495833]
[1768934430042,13.31383089,2991.6,2990.6,4.30114773]
[1768934430864,13.86383089,2991.6,2990.6,4.30114773]
[1768934431075,13.48986572,2991.5,2990.6,7.64495833]
[1768934431255,13.48986572,2991.5,2990.6,4.30114773]
[1768934431455,13.48986572,2991.5,2990.4,3.89500799]
[1768934431657,13.48986572,2991.5,2990.4,0.551]
[1768934431874,13.48986572,2991.5,2990.4,3.34402807]
[1768934432881,13.48986572,2991.5,2990.4,15.71585308]
[1768934433044,12.65348263,2991.4,2990.4,15.71585308]
[1768934433384,12.65348263,2991.4,2990.4,14.27782514]
[1768934433385,14.0574692,2991.4,2990.4,14.27782514]
[1768934433683,14.0574692,2991.4,2989.9,9.87564739]
[1768934433684,12.10348263,2992.3,2991.1,7.6246588]
[1768934433981,12.10348263,2992.3,2991.1,0.551]
[1768934434183,12.10348263,2992.1,2991.1,0.551]
[1768934434385,12.10348263,2992.1,2991.1,8.1756588]
[1768934434590,12.10348263,2992.1,2991.2,8.44222468]
[1768934434975,12.10348263,2992.4,2991.2,8.44222468]
[1768934435172,0.55,2992.3,2991.2,8.44222468]
[1768934435548,12.10348263,2992.3,2991.4,7.62633867]
[1768934435751,12.65348263,2992.3,2991.3,3.34302811]
[1768934436084,12.10348263,2992.1,2990.9,3.34338285]
[1768934436253,0.001,2991.3,2990.9,3.34338285]
[1768934436594,0.001,2991.3,2991.0,3.34330182]
[1768934436896,0.001,2991.3,2991.2,3.34313987]
[1768934437380,0.001,2991.3,2990.7,0.551]
[1768934437560,0.001,2991.3,2990.8,3.34351962]
[1768934437749,0.001,2991.3,2990.8,6.68710662]
[1768934437949,0.001,2991.3,2990.9,0.03343475]
[1768934438148,0.001,2991.3,2990.6,3.34377282]
[1768934438149,12.10448263,2991.3,2990.6,3.34377282]
[1768934438461,12.10448263,2991.3,2990.7,3.34368348]
[1768934438779,0.001,2991.3,2990.7,7.35613161]
[1768934438979,0.001,2991.3,2990.8,7.62878681]
[1768934439180,11.93648263,2991.9,2990.8,8.17878681]
[1768934439412,12.48648263,2991.9,2990.8,8.17878681]
[1768934439616,12.48648263,2991.9,2990.9,6.6869504]
[1768934439819,13.73513089,2991.9,2990.9,7.47752037]
[1768934440129,0.55,2991.8,2990.9,18.60312865]
[1768934440487,11.93648263,2991.9,2990.9,18.60312865]
[1768934440699,12.48648263,2991.9,2990.9,18.60312865]
[1768934440890,12.10348263,2992.7,2991.0,7.76962469]
[1768934441091,0.128,2993.1,2991.2,7.76962469]
[1768934441092,12.10348263,2992.5,2991.2,7.76962469]
[1768934441318,0.55,2992.4,2991.4,7.76962469]
[1768934441520,12.65348263,2992.4,2991.5,6.68560922]
[1768934442219,12.65348263,2992.4,2991.5,3.34280461]
[1768934442414,12.65348263,2992.4,2991.5,6.68560922]
[1768934442626,0.128,2993.6,2991.5,6.68560922]
[1768934442627,3.34057948,2993.5,2991.5,18.49701203]
[1768934442797,12.10348263,2993.2,2991.6,7.74503728]
[1768934442988,12.10348263,2993.2,2991.7,0.55]
[1768934443179,12.10348263,2993.0,2991.7,2.4547012]
[1768934443382,12.10348263,2992.8,2991.7,2.4547012]
[1768934443581,12.10348263,2992.8,2991.8,3.34246941]
[1768934444217,12.10348263,2992.8,2991.8,6.68493882]
[1768934444804,12.10348263,2992.8,2991.8,3.34246941]
[1768934445008,12.10348263,2992.8,2991.9,7.69445028]
[1768934445320,12.65348263,2992.8,2992.0,1.77218585]
[1768934445619,12.10348263,2992.8,2992.1,6.68426856]
[1768934446284,0.128,2994.1,2992.1,10.02640284]
[1768934446285,12.19858347,2993.1,2992.1,10.02640284]
[1768934446512,0.55,2993.0,2992.2,1.17985887]
[1768934447716,0.55,2993.0,2992.3,6.6838218]
[1768934448024,12.74858347,2993.0,2992.3,3.3419109]
[1768934448206,12.74858347,2993.0,2992.3,4.12828743]
[1768934448388,0.001,2992.8,2992.3,4.12828743]
[1768934449823,0.001,2992.8,2992.3,7.47019833]
[1768934451192,0.001,2992.8,2992.3,4.12828743]
[1768934452917,12.19958347,2992.8,2992.3,4.12828743]
[1768934453318,12.19958347,2992.8,2992.3,7.47019833]
[1768934455134,0.001,2992.8,2992.3,7.47019833]
[1768934455631,0.55,2993.0,2992.4,8.30586358]
[1768934456020,12.19858347,2993.4,2992.4,8.30586358]
[1768934456227,0.55,2993.5,2992.6,7.55884375]
[1768934456405,12.74858347,2993.5,2992.6,7.55884375]
[1768934456599,12.74858347,2993.5,2992.7,0.81088438]
[1768934457140,12.74858347,2993.5,2992.8,3.34135257]
[1768934457506,12.74858347,2993.5,2992.5,0.55]
[1768934457709,12.74858347,2993.5,2992.6,3.34151]
[1768934458741,12.74858347,2993.5,2992.7,3.34145082]
[1768934458941,12.74858347,2993.5,2992.5,3.89168217]
[1768934458942,12.19858347,2993.3,2992.6,3.34147343]
[1768934459449,12.19858347,2993.3,2992.1,3.34206918]
[1768934459745,12.19858347,2993.2,2992.4,3.34179709]
[1768934459945,12.19858347,2993.0,2992.4,3.34179709]
[1768934460128,12.19858347,2993.0,2992.0,7.51365133]
[1768934460332,12.19858347,2993.0,2992.1,3.34206349]
[1768934460537,12.19858347,2992.8,2992.1,3.34206349]
[1768934461063,0.55,2992.7,2991.8,8.06365133]
[1768934461217,12.19858347,2992.6,2991.8,7.23488032]
[1768934461526,12.19858347,2992.6,2991.9,7.50267577]
[1768934461919,12.19858347,2992.6,2991.8,7.23488032]
[1768934462122,12.19858347,2992.6,2991.8,3.89241091]
[1768934462319,12.19858347,2992.6,2991.5,7.49182628]
[1768934462546,12.19858347,2992.6,2991.7,3.34252586]
[1768934462747,12.19858347,2992.6,2991.8,3.34246273]
[1768934463330,12.19858347,2992.6,2991.5,8.04182628]
[1768934463331,12.19858347,2992.6,2991.5,3.89277691]
[1768934463830,12.19858347,2992.6,2991.4,3.34282162]
[1768934464031,12.19858347,2992.4,2991.5,3.34279836]
[1768934464354,12.19858347,2992.2,2991.3,3.34297777]
[1768934464566,12.19858347,2992.2,2991.4,3.34289737]
[1768934464953,12.19858347,2992.2,2991.5,3.34277147]
[1768934465562,12.19858347,2992.2,2991.4,3.34283881]
[1768934465765,12.19858347,2992.2,2991.5,0.33428388]
[1768934466270,12.19858347,2993.2,2992.0,7.44966026]
[1768934466581,12.19858347,2993.2,2992.2,7.44966026]
[1768934466872,12.19858347,2993.2,2992.1,0.55]
[1768934467281,12.19858347,2993.2,2992.1,7.98941971]
[1768934467496,12.19858347,2993.2,2992.3,7.43941971]
[1768934467776,0.001,2993.3,2992.3,7.43941971]
[1768934468070,0.001,2993.3,2992.5,7.42929678]
[1768934468235,0.001,2993.3,2992.5,7.97929678]
[1768934469498,12.19958347,2993.3,2992.5,3.89159754]
[1768934470582,12.19958347,2993.3,2992.5,7.23328509]
[1768934470750,12.19958347,2993.3,2992.5,3.89159754]
[1768934470958,12.19958347,2993.3,2992.5,4.61493617]
[1768934471987,0.001,2993.1,2992.5,4.61493617]
[1768934472372,0.001,2993.1,2992.5,1.27333863]
[1768934472373,12.19958347,2993.1,2992.5,1.27333863]
[1768934472576,12.19958347,2993.1,2992.3,3.34182327]
[1768934472891,12.19958347,2993.1,2992.2,0.55]
[1768934473385,12.19958347,2993.1,2992.3,3.34184737]
[1768934474182,12.19958347,2993.1,2992.2,3.34197367]
[1768934474388,13.47464182,2993.1,2992.2,3.34197367]
[1768934475393,13.47464182,2993.1,2991.9,3.89232116]
[1768934475590,13.47464182,2993.1,2992.0,3.34223718]
[1768934475591,12.32829103,2993.0,2992.0,3.34223718]
[1768934475891,12.32829103,2993.0,2991.7,3.34458114]
[1768934476101,12.32829103,2992.8,2991.7,3.34458114]
[1768934476301,12.32829103,2992.6,2991.7,3.34458114]
[1768934476794,12.32829103,2992.6,2991.7,0.002]
[1768934477096,12.32829103,2992.6,2991.5,0.002]
[1768934477688,12.32829103,2992.5,2991.5,0.002]
[1768934477874,12.32829103,2992.3,2991.5,0.002]
[1768934478071,0.55,2992.2,2991.5,0.002]
[1768934478292,12.32829103,2992.1,2991.5,0.002]
[1768934480291,12.32829103,2992.0,2991.5,0.002]
[1768934480595,12.87829103,2992.0,2991.5,0.002]
[1768934480792,12.87829103,2992.0,2991.1,3.3432409]
[1768934480997,12.87829103,2992.0,2990.4,7.30319703]
[1768934481168,12.87829103,2992.0,2990.3,3.3461445]
[1768934481368,12.32829103,2991.8,2990.4,1.11993415]
[1768934481667,12.32829103,2991.6,2990.4,4.46393598]
[1768934481867,12.32829103,2991.4,2990.5,7.2946847]
[1768934482068,12.32829103,2991.2,2990.4,13.98272077]
[1768934482299,1.8378291,2991.1,2990.4,13.98272077]
[1768934482476,12.87829103,2991.1,2990.4,6.68803607]
[1768934482799,12.87829103,2991.1,2990.4,3.34400183]
[1768934482986,12.87829103,2991.1,2990.4,6.68803607]
[1768934483199,12.87829103,2991.1,2990.4,3.34400183]
[1768934483480,12.87829103,2991.1,2990.3,0.002]
[1768934483979,12.87829103,2991.1,2990.3,0.33663697]
[1768934484176,12.87829103,2991.1,2990.8,0.002]
[1768934484601,12.32829103,2991.0,2990.3,0.002]
[1768934487541,12.87829103,2991.3,2990.3,7.25578681]
[1768934487839,3.46973311,2992.5,2990.3,7.25578681]
[1768934487840,12.32829103,2991.6,2990.5,7.24591513]
[1768934488037,0.55,2991.9,2990.8,7.24591513]
[1768934488239,0.55,2991.9,2990.8,9.02861628]
[1768934488607,12.32829103,2991.8,2990.8,1.78270115]
[1768934488809,12.32829103,2991.8,2990.7,6.68739758]
[1768934488810,12.32829103,2991.8,2990.7,10.03109637]
[1768934489020,12.32829103,2991.9,2990.8,7.23813387]
[1768934489204,0.55,2991.9,2990.8,7.23813387]
[1768934489531,12.32829103,2992.9,2991.0,9.49709199]
[1768934489730,12.32829103,2992.3,2991.1,8.18015119]
[1768934489919,12.32829103,2992.1,2991.2,3.34313987]
[1768934490409,12.32829103,2992.1,2991.2,6.68627974]
[1768934490745,12.32829103,2993.0,2991.3,7.22283845]
[1768934490896,0.129,2993.3,2991.3,7.22283845]
[1768934490897,12.32829103,2992.8,2991.3,7.22283845]
[1768934491926,12.32829103,2992.8,2991.6,7.21532225]
[1768934492111,12.32829103,2992.8,2991.6,7.76532225]
[1768934492112,12.87829103,2992.8,2991.6,7.76532225]
[1768934492416,12.87829103,2992.8,2991.7,8.99469586]
[1768934494149,12.87829103,2992.8,2991.8,3.34246941]
[1768934494432,12.87829103,2992.8,2991.8,6.68493882]
[1768934494930,12.87829103,2992.7,2991.8,6.68493882]
[1768934495699,12.87829103,2993.0,2991.9,7.18611089]
[1768934496096,12.87829103,2993.0,2992.0,3.34224598]
[1768934496298,12.87829103,2993.0,2992.0,8.07155622]
[1768934496299,1.2879291,2993.0,2992.0,8.07155622]
[1768934496521,0.55,2993.0,2992.1,11.94201044]
[1768934496700,0.55,2993.0,2992.0,8.07155622]
[1768934496902,0.55,2993.0,2992.1,11.94201044]
[1768934497836,0.001,2993.1,2992.1,11.94201044]
[1768934498033,0.001,2993.1,2992.4,15.28380966]
[1768934498239,0.551,2993.1,2992.4,15.28380966]
[1768934498819,0.551,2993.1,2992.4,18.62560888]
[1768934499711,0.551,2993.1,2992.5,11.94201044]
[1768934500425,12.32929103,2993.3,2992.4,6.68359844]
[1768934500426,0.001,2993.3,2992.7,11.94201044]
[1768934500764,12.32829103,2993.8,2992.6,6.68315176]
[1768934500765,12.32829103,2993.8,2992.9,11.94201044]
[1768934502010,12.32829103,2994.1,2992.9,11.94201044]
[1768934502248,12.32829103,2994.3,2993.1,11.94201044]
[1768934502424,0.001,2994.6,2993.0,10.0233879]
[1768934502425,0.55,2994.4,2993.3,11.94201044]
[1768934502612,12.87929103,2994.6,2993.3,11.94201044]
[1768934503216,12.87929103,2994.6,2993.3,12.49201044]
[1768934503217,12.32829103,2994.5,2993.3,12.49201044]
[1768934503416,0.551,2994.6,2993.3,12.49201044]
[1768934503417,12.32829103,2994.3,2993.4,0.80196193]
[1768934504014,0.55,2994.2,2993.4,0.80196193]
[1768934504214,11.65169424,2994.2,2993.4,4.14263129]
[1768934505343,11.65169424,2994.2,2993.4,3.34065379]
[1768934505543,11.81190083,2994.5,2993.4,18.51203649]
[1768934505745,12.36190083,2994.4,2993.5,11.83069987]
[1768934505950,11.81190083,2994.4,2993.5,11.83069987]
[1768934506116,0.001,2994.6,2993.5,12.38069987]
[1768934506117,11.81290083,2994.6,2993.5,12.38069987]
[1768934506316,11.81290083,2994.6,2993.8,18.51117283]
[1768934506645,11.81290083,2994.6,2993.8,15.17093635]
[1768934507150,11.81290083,2994.9,2994.0,11.83069987]
[1768934507349,0.001,2994.9,2994.0,11.83069987]
[1768934508356,0.001,2994.9,2994.1,3.3399018]
[1768934508560,0.001,2994.9,2994.2,12.58897437]
[1768934509621,0.001,2995.1,2994.4,11.83069987]
[1768934510120,0.55,2995.5,2994.4,11.83069987]
[1768934510371,0.55,2995.9,2994.8,6.67824228]
[1768934510526,11.81190083,2995.9,2994.9,14.23159408]
[1768934510856,11.81190083,2996.2,2994.9,14.23159408]
[1768934511260,0.55,2996.3,2994.9,14.23159408]
[1768934511631,12.36190083,2996.4,2994.9,14.23159408]
[1768934511828,12.36190083,2996.4,2995.1,11.83069987]
[1768934512430,12.36190083,2996.4,2995.2,11.83069987]
[1768934512742,0.001,2996.5,2995.1,3.33868373]
[1768934512743,0.001,2996.5,2995.3,12.38069987]
[1768934512935,0.55,2996.4,2995.3,12.38069987]
[1768934513466,12.36190083,2996.4,2995.0,12.17634549]
[1768934513766,11.81190083,2996.2,2995.2,0.55]
[1768934514552,11.81190083,2996.2,2995.1,1.40272397]
[1768934514726,11.81190083,2996.1,2995.0,0.34564562]
[1768934515050,11.81190083,2995.9,2994.9,0.55]
[1768934515866,11.81190083,2995.9,2994.4,11.83069987]
[1768934515867,11.81190083,2995.9,2994.5,0.55]
[1768934516066,11.81190083,2995.9,2994.5,3.88942214]
[1768934516245,11.81190083,2995.7,2994.6,1.5720122]
[1768934516445,11.81190083,2995.5,2994.6,1.5720122]
[1768934516747,0.55,2995.6,2994.6,13.40271207]
[1768934516929,0.55,2995.6,2994.6,11.83069987]
[1768934517130,12.36190083,2995.6,2994.5,0.55]
[1768934517566,12.36190083,2995.6,2994.6,3.3393364]
[1768934517865,6.33,2996.9,2994.7,11.83069987]
[1768934517866,11.81190083,2995.9,2994.7,11.83069987]
[1768934518063,0.55,2995.8,2994.8,13.68163791]
[1768934518251,0.55,2995.8,2994.8,11.83069987]
[1768934518459,0.55,2995.8,2994.9,3.33900964]
[1768934518678,12.36190083,2995.8,2994.8,11.83069987]
[1768934518856,12.36190083,2995.8,2994.8,15.16979513]
[1768934519062,12.36190083,2995.8,2994.9,1.85090264]
[1768934519859,0.55,2996.0,2994.9,13.68160251]
[1768934520180,12.36190083,2996.0,2994.9,1.85090264]
[1768934520473,11.81190083,2995.9,2994.6,12.38069987]
[1768934520779,11.81190083,2995.9,2994.6,0.55]
[1768934521079,11.81190083,2995.9,2992.5,22.38978433]
[1768934521080,11.81190083,2995.7,2994.0,11.83069987]
[1768934521279,11.81190083,2995.5,2994.0,12.38069987]
[1768934521446,11.81190083,2995.5,2994.0,15.72063128]
[1768934521645,11.81190083,2995.5,2994.1,3.33986291]
[1768934521874,11.81190083,2995.3,2995.0,0.002]
[1768934522187,1.23619008,2995.4,2995.0,0.002]
[1768934522188,11.81190083,2995.1,2995.0,0.002]
[1768934522704,13.04809091,2995.4,2995.0,0.002]
[1768934522980,11.81190083,2995.4,2995.0,0.002]
[1768934523154,11.81190083,2995.9,2995.0,0.002]
[1768934523359,13.54319091,2995.8,2995.0,0.002]
[1768934524066,12.36190083,2995.8,2995.0,0.002]
[1768934524645,11.81190083,2995.8,2995.0,0.002]
[1768934524884,12.36190083,2995.8,2995.0,0.002]
[1768934525046,12.36190083,2995.8,2995.0,11.83269987]
[1768934525246,11.81190083,2995.8,2995.0,11.83269987]
[1768934525580,13.54319091,2995.8,2995.0,0.002]
[1768934526093,12.99319091,2995.8,2995.0,0.002]
[1768934526293,0.55,2995.7,2995.0,11.83269987]
[1768934526494,0.001,2996.0,2995.0,11.83269987]
[1768934526676,0.001,2996.0,2995.1,11.83069987]
[1768934526875,11.81290083,2996.0,2995.1,11.83069987]
[1768934528594,0.001,2996.0,2995.1,11.83069987]
[1768934528761,0.001,2996.0,2995.3,11.83069987]
[1768934531596,0.001,2996.0,2995.3,15.16916536]
[1768934531811,0.001,2996.0,2995.3,11.83069987]
[1768934532118,11.81290083,2996.0,2995.1,12.38069987]
[1768934532270,11.81290083,2996.0,2995.1,15.71944796]
[1768934532462,11.81290083,2996.0,2995.2,13.40284467]
[1768934533081,0.001,2996.0,2995.3,11.83069987]
[1768934533436,11.81190083,2996.3,2995.4,11.83069987]
[1768934533725,12.36190083,2996.3,2995.4,11.83069987]
[1768934534295,0.001,2995.8,2995.4,11.83069987]
[1768934534608,12.36190083,2996.3,2995.5,1.18306999]
[1768934536107,12.36190083,2996.3,2995.4,3.33845115]
[1768934536620,12.36190083,2996.3,2995.4,13.15066483]
[1768934537436,12.36190083,2996.3,2995.4,9.81221368]
[1768934537736,12.36190083,2996.3,2995.2,14.72298344]
[1768934538217,12.36190083,2996.3,2995.2,4.91076976]
[1768934538515,9.53197753,2996.1,2995.3,9.81221368]
[1768934538893,9.53197753,2996.1,2995.1,13.70095264]
[1768934539299,9.53197753,2996.1,2995.2,13.15087826]
[1768934540220,9.53197753,2996.4,2995.3,9.81221368]
[1768934540426,9.53197753,2996.4,2995.2,6.67733979]
[1768934540427,10.08197753,2996.3,2995.5,9.81221368]
[1768934541429,10.08197753,2996.3,2995.6,9.81221368]
[1768934544120,9.53197753,2996.3,2995.6,9.81221368]
[1768934544325,10.08197753,2996.3,2995.6,9.81221368]
[1768934544503,10.08197753,2996.3,2995.6,10.95833058]
[1768934544906,10.08197753,2996.3,2995.2,9.81221368]
[1768934545726,0.55,2996.2,2995.3,9.81221368]
[1768934546024,10.08197753,2996.2,2995.7,0.002]
[1768934546432,9.53197753,2996.0,2995.7,0.002]
[1768934547096,9.53197753,2996.0,2995.5,0.002]
[1768934547299,9.53197753,2995.8,2995.5,0.002]
[1768934548326,10.08197753,2995.8,2995.5,0.002]
[1768934550027,0.55,2995.8,2995.5,0.002]
[1768934550236,10.08197753,2995.8,2995.5,0.002]
[1768934550420,10.08197753,2995.8,2995.0,0.002]
[1768934550823,10.08197753,2995.8,2995.0,11.51863813]
[1768934551341,9.53197753,2995.8,2995.0,5.04531424]
[1768934551513,0.55,2995.7,2995.1,9.81221368]
[1768934551718,9.53197753,2996.0,2995.2,9.81221368]
[1768934551914,0.55,2995.9,2995.2,9.81221368]
[1768934552228,0.55,2995.9,2995.3,9.81221368]
[1768934552537,0.55,2996.0,2995.3,9.81221368]
[1768934552738,0.55,2996.0,2995.3,11.46117806]
[1768934553601,10.08197753,2996.0,2995.3,1.64896438]
[1768934553942,10.08197753,2996.0,2995.1,9.81221368]
[1768934554437,10.08197753,2996.0,2995.1,13.15098716]
[1768934554696,10.08197753,2995.9,2995.2,9.81221368]
[1768934554852,10.08197753,2995.9,2995.0,9.81421368]
[1768934556044,10.08197753,2995.9,2995.0,13.15310759]
[1768934556260,10.08197753,2995.9,2995.1,1.64921069]
[1768934556608,10.08197753,2995.9,2995.0,9.81421368]
[1768934556843,10.08197753,2995.9,2995.0,13.15310557]
[1768934557054,10.08197753,2995.9,2995.0,9.81421368]
[1768934557812,10.08197753,2995.9,2995.1,9.81221368]
[1768934558546,10.08197753,2995.9,2995.2,0.002]
[1768934558742,11.09027528,2995.9,2995.2,0.002]
[1768934561742,9.53197753,2995.7,2995.2,0.002]
[1768934562760,0.55,2995.6,2995.2,0.002]
[1768934563135,9.53197753,2995.7,2995.2,0.002]
[1768934563338,0.55,2995.5,2995.2,0.002]
[1768934564763,8.71500475,2995.4,2995.0,0.002]
[1768934568854,8.71500475,2995.4,2994.3,0.002]
[1768934568855,8.95882053,2995.2,2994.3,0.002]
[1768934569159,8.95882053,2995.0,2994.3,0.002]
[1768934574779,8.95882053,2995.0,2994.3,9.33908539]
[1768934574981,0.55,2994.9,2994.3,9.33908539]
[1768934575284,0.55,2994.8,2994.3,9.33908539]
[1768934577188,9.50882053,2994.8,2994.3,0.002]
[1768934577393,10.45970258,2994.8,2994.3,9.33908539]
[1768934577546,9.50882053,2994.8,2994.3,9.33908539]
[1768934578151,8.95882053,2994.8,2994.3,9.33908539]
[1768934578381,8.95882053,2995.0,2994.3,9.33908539]
[1768934580388,8.95882053,2995.6,2994.4,9.33708539]
[1768934580593,0.55,2995.5,2994.6,9.33708539]
[1768934581258,9.50882053,2995.5,2994.6,9.33708539]
[1768934582170,0.55,2995.5,2994.6,9.33708539]
[1768934582374,0.55,2995.5,2994.8,9.33708539]
[1768934582957,8.95982053,2995.7,2994.8,10.6047234]
[1768934583192,0.55,2995.6,2994.8,10.6047234]
[1768934584497,9.50882053,2995.6,2994.8,10.6047234]
[1768934584706,0.55,2995.5,2994.8,10.6047234]
[1768934585161,0.55,2995.5,2994.5,0.002]
[1768934585162,9.50882053,2995.5,2994.5,0.002]
[1768934587272,8.95882053,2995.4,2994.5,0.002]
[1768934588711,8.95882053,2995.4,2994.5,9.33908539]
[1768934589269,8.95882053,2995.4,2994.5,0.002]
[1768934589468,8.95882053,2995.2,2994.5,0.002]
[1768934593911,0.55,2995.1,2994.5,0.002]
[1768934594208,8.95882053,2995.0,2994.5,0.002]
[1768934594986,8.95882053,2995.0,2994.7,0.002]
[1768934596503,8.95882053,2995.0,2994.5,0.002]
[1768934596676,8.5295734,2994.8,2994.5,0.002]
[1768934600340,10.01769792,2994.7,2993.8,0.002]
[1768934600499,10.01769792,2994.7,2992.9,8.03135739]
[1768934600500,8.5295734,2994.5,2992.9,8.03135739]
[1768934600695,8.5295734,2994.3,2993.2,8.03135739]
[1768934600931,8.5295734,2994.3,2993.3,8.03335739]
[1768934601434,8.5295734,2994.1,2993.3,0.002]
[1768934602697,8.5295734,2994.1,2993.1,0.002]
[1768934602698,9.25970068,2994.1,2993.1,0.002]
[1768934603442,8.5295734,2993.9,2993.1,0.002]
[1768934603610,8.5295734,2993.7,2993.1,0.002]
[1768934603999,9.0795734,2993.7,2993.1,8.03335739]
[1768934606411,9.0795734,2993.7,2993.1,0.002]
[1768934608153,9.0795734,2993.7,2993.3,0.002]
[1768934608327,9.43753074,2993.6,2993.3,0.002]
[1768934609436,9.43753074,2993.6,2992.7,0.55]
[1768934609437,8.5295734,2993.3,2991.9,8.03335739]
[1768934609632,8.5295734,2993.1,2992.1,8.03335739]
[1768934609840,8.5295734,2993.5,2992.1,9.38689313]
[1768934611010,8.5295734,2993.5,2992.4,8.03135739]
[1768934611754,8.5295734,2993.5,2992.6,8.03135739]
[1768934613569,8.5295734,2993.3,2992.1,0.002]
[1768934613851,8.5295734,2992.3,2991.6,0.55]
[1768934614214,8.54370935,2992.3,2991.6,0.55]